[Event "Titled Tuesday Blitz January 25 2022"]
[White "Gunina, Valentina"]
[Black "Demchenko, Anton"]
[WhiteFideId "4167570"]
[BlackFideId "4160258"]
[WhiteElo "2465"]
[BlackElo "2539"]
[Result "1-0"]
[Round "10"]
[TimeControl "180+1"]
[Date "2022.01.26"]
[WhiteClock "0:00:17"]
[BlackClock "0:00:08"]

1. d4 {[%clk 0:03:00]}  Nf6 {[%clk 0:03:00]} 2. c4 {[%clk 0:03:01]}  g6 {[%clk 0:03:00]} 3. Nc3 {[%clk 0:03:00]}  Bg7 {[%clk 0:03:00]} 4. e4 {[%clk 0:03:01]}  d6 {[%clk 0:03:00]} 5. Be2 {[%clk 0:03:01]}  O-O {[%clk 0:03:00]} 6. Be3 {[%clk 0:03:01]}  Na6 {[%clk 0:02:58]} 7. Nf3 {[%clk 0:03:00]}  e5 {[%clk 0:02:57]} 8. O-O {[%clk 0:03:00]}  c6 {[%clk 0:02:56]} 9. d5 {[%clk 0:02:59]}  Ng4 {[%clk 0:02:57]} 10. Bg5 {[%clk 0:02:59]}  f6 {[%clk 0:02:58]} 11. Bc1 {[%clk 0:02:59]}  c5 {[%clk 0:02:56]} 12. Ne1 {[%clk 0:02:53]}  Nh6 {[%clk 0:02:57]} 13. Nd3 {[%clk 0:02:53]}  Nf7 {[%clk 0:02:53]} 14. f4 {[%clk 0:02:52]}  exf4 {[%clk 0:02:50]} 15. Bxf4 {[%clk 0:02:52]}  Qe7 {[%clk 0:02:48]} 16. Qe1 {[%clk 0:02:49]}  Nb4 {[%clk 0:02:43]} 17. Nxb4 {[%clk 0:02:46]}  cxb4 {[%clk 0:02:44]} 18. Nb5 {[%clk 0:02:46]}  a6 {[%clk 0:02:40]} 19. Nd4 {[%clk 0:02:46]}  f5 {[%clk 0:02:33]} 20. Ne6 {[%clk 0:02:39]}  Bxe6 {[%clk 0:02:28]} 21. dxe6 {[%clk 0:02:40]}  Ne5 {[%clk 0:01:40]} 22. exf5 {[%clk 0:02:33]}  Rxf5 {[%clk 0:01:41]} 23. Qxb4 {[%clk 0:02:31]}  Qxe6 {[%clk 0:01:09]} 24. Qxb7 {[%clk 0:02:27]}  Raf8 {[%clk 0:01:09]} 25. Bg3 {[%clk 0:02:24]}  Nxc4 {[%clk 0:00:58]} 26. Rxf5 {[%clk 0:02:15]}  gxf5 {[%clk 0:00:49]} 27. Bf3 {[%clk 0:02:10]}  Ne3 {[%clk 0:00:40]} 28. Re1 {[%clk 0:01:57]}  f4 {[%clk 0:00:37]} 29. Bf2 {[%clk 0:01:57]}  Kh8 {[%clk 0:00:28]} 30. Qb6 {[%clk 0:01:41]}  Qxa2 {[%clk 0:00:26]} 31. Qxd6 {[%clk 0:01:32]}  a5 {[%clk 0:00:16]} 32. Bh4 {[%clk 0:01:22]}  Qxb2 {[%clk 0:00:13]} 33. Be7 {[%clk 0:01:22]}  Rb8 {[%clk 0:00:12]} 34. Qxf4 {[%clk 0:01:18]}  Nc2 {[%clk 0:00:07]} 35. Rd1 {[%clk 0:01:16]}  Nd4 {[%clk 0:00:06]} 36. h3 {[%clk 0:00:59]}  Nxf3+ {[%clk 0:00:05]} 37. Qxf3 {[%clk 0:00:58]}  Re8 {[%clk 0:00:06]} 38. Bh4 {[%clk 0:00:54]}  a4 {[%clk 0:00:05]} 39. Qf7 {[%clk 0:00:52]}  Qb6+ {[%clk 0:00:06]} 40. Bf2 {[%clk 0:00:51]}  Qg6 {[%clk 0:00:06]} 41. Qa7 {[%clk 0:00:45]}  Qc6 {[%clk 0:00:04]} 42. Bg3 {[%clk 0:00:33]}  Rg8 {[%clk 0:00:04]} 43. Rd7 {[%clk 0:00:29]}  Qc2 {[%clk 0:00:01]} 44. Kh2 {[%clk 0:00:25]}  Qg6 {[%clk 0:00:01]} 45. Qxa4 {[%clk 0:00:22]}  Bf6 {[%clk 0:00:01]} 46. Qb3 {[%clk 0:00:20]}  Rg7 {[%clk 0:00:01]} 47. Rxg7 {[%clk 0:00:19]}  Qxg7 {[%clk 0:00:02]} 48. Qb8+ {[%clk 0:00:18]}  Qg8 {[%clk 0:00:02]} 49. Qd6 {[%clk 0:00:18]}  Qf7 {[%clk 0:00:02]} 50. Bf4 {[%clk 0:00:17]}  Kg8 {[%clk 0:00:02]} 51. Qd3 {[%clk 0:00:15]}  h5 {[%clk 0:00:02]} 52. Qf5 {[%clk 0:00:14]}  Kg7 {[%clk 0:00:03]} 53. Bg5 {[%clk 0:00:14]}  Bxg5 {[%clk 0:00:03]} 54. Qxg5+ {[%clk 0:00:14]}  Kh7 {[%clk 0:00:03]} 55. Kg3 {[%clk 0:00:15]}  Kh8 {[%clk 0:00:01]} 56. Kh4 {[%clk 0:00:15]}  Qf2+ {[%clk 0:00:01]} 57. Kxh5 {[%clk 0:00:14]}  Qf7+ {[%clk 0:00:02]} 58. Kh4 {[%clk 0:00:15]}  Qf2+ {[%clk 0:00:02]} 59. Kh5 {[%clk 0:00:15]}  Qf7+ {[%clk 0:00:02]} 60. Kg4 {[%clk 0:00:16]}  Qe6+ {[%clk 0:00:01]} 61. Kg3 {[%clk 0:00:16]}  Qd6+ {[%clk 0:00:01]} 62. Qf4 {[%clk 0:00:16]}  Qd3+ {[%clk 0:00:01]} 63. Kh2 {[%clk 0:00:16]}  Qe2 {[%clk 0:00:01]} 64. Qh4+ {[%clk 0:00:16]}  Kg7 {[%clk 0:00:02]} 65. Qg4+ {[%clk 0:00:16]}  Qxg4 {[%clk 0:00:02]} 66. hxg4 {[%clk 0:00:17]}  Kg6 {[%clk 0:00:03]} 67. Kg3 {[%clk 0:00:17]}  Kg5 {[%clk 0:00:04]} 68. Kf3 {[%clk 0:00:18]}  Kh4 {[%clk 0:00:04]} 69. g5 {[%clk 0:00:15]}  Kxg5 {[%clk 0:00:05]} 70. Kg3 {[%clk 0:00:16]}  Kf5 {[%clk 0:00:06]} 71. Kh4 {[%clk 0:00:16]}  Kf4 {[%clk 0:00:06]} 72. g4 {[%clk 0:00:16]}  Ke5 {[%clk 0:00:06]} 73. Kg5 {[%clk 0:00:16]}  Ke6 {[%clk 0:00:07]} 74. Kh6 {[%clk 0:00:17]}  Kf7 {[%clk 0:00:08]} 1-0


[Site "https://www.chess.com"]

[Event "Titled Tuesday Blitz January 25 2022"]
[White "Havanecz, Bianka"]
[Black "Moskalenko, Alexander"]
[WhiteFideId "704814"]
[BlackFideId "4155351"]
[WhiteElo "2400"]
[BlackElo "2515"]
[Result "0-1"]
[Round "10"]
[TimeControl "180+1"]
[Date "2022.01.26"]
[WhiteClock "0:00:13"]
[BlackClock "0:00:40"]

1. d4 {[%clk 0:03:00]}  d5 {[%clk 0:02:47]} 2. c4 {[%clk 0:03:01]}  e5 {[%clk 0:02:46]} 3. dxe5 {[%clk 0:03:00]}  d4 {[%clk 0:02:46]} 4. a3 {[%clk 0:03:00]}  Nc6 {[%clk 0:02:43]} 5. Nf3 {[%clk 0:03:00]}  Nge7 {[%clk 0:02:44]} 6. e3 {[%clk 0:02:58]}  Bg4 {[%clk 0:02:26]} 7. exd4 {[%clk 0:02:56]}  Bxf3 {[%clk 0:02:17]} 8. Qxf3 {[%clk 0:02:55]}  Nxd4 {[%clk 0:02:18]} 9. Qd1 {[%clk 0:02:52]}  Qd7 {[%clk 0:02:14]} 10. Nc3 {[%clk 0:02:42]}  O-O-O {[%clk 0:02:11]} 11. Be2 {[%clk 0:02:39]}  Nxe2 {[%clk 0:02:05]} 12. Qxd7+ {[%clk 0:02:32]}  Rxd7 {[%clk 0:02:06]} 13. Kxe2 {[%clk 0:02:32]}  Nc6 {[%clk 0:02:06]} 14. f4 {[%clk 0:02:20]}  Nd4+ {[%clk 0:02:06]} 15. Kf2 {[%clk 0:02:13]}  Nc2 {[%clk 0:02:06]} 16. Rb1 {[%clk 0:02:06]}  Bc5+ {[%clk 0:02:06]} 17. Kf3 {[%clk 0:02:02]}  Nxa3 {[%clk 0:01:45]} 18. bxa3 {[%clk 0:01:47]}  Rd3+ {[%clk 0:01:43]} 19. Kg4 {[%clk 0:01:36]}  h5+ {[%clk 0:01:42]} 20. Kf5 {[%clk 0:01:33]}  Rxc3 {[%clk 0:01:42]} 21. Bb2 {[%clk 0:01:19]}  Rxc4 {[%clk 0:01:42]} 22. g3 {[%clk 0:01:11]}  Be7 {[%clk 0:01:40]} 23. e6 {[%clk 0:00:57]}  g6+ {[%clk 0:01:15]} 24. Ke5 {[%clk 0:00:57]}  f6+ {[%clk 0:00:53]} 25. Kd5 {[%clk 0:00:57]}  Rc5+ {[%clk 0:00:54]} 26. Ke4 {[%clk 0:00:57]}  f5+ {[%clk 0:00:50]} 27. Kf3 {[%clk 0:00:56]}  Re8 {[%clk 0:00:48]} 28. Rhe1 {[%clk 0:00:54]}  Rb5 {[%clk 0:00:40]} 29. a4 {[%clk 0:00:30]}  Rb3+ {[%clk 0:00:40]} 30. Kf2 {[%clk 0:00:24]}  Bb4 {[%clk 0:00:40]} 31. Re2 {[%clk 0:00:20]}  Bc5+ {[%clk 0:00:38]} 32. Kg2 {[%clk 0:00:19]}  Bd4 {[%clk 0:00:37]} 33. Kf1 {[%clk 0:00:09]}  Rxb2 {[%clk 0:00:37]} 34. Rbxb2 {[%clk 0:00:09]}  Bxb2 {[%clk 0:00:38]} 35. Rxb2 {[%clk 0:00:09]}  Rxe6 {[%clk 0:00:38]} 36. Rb4 {[%clk 0:00:08]}  c5 {[%clk 0:00:38]} 37. Rc4 {[%clk 0:00:08]}  b6 {[%clk 0:00:39]} 38. Kf2 {[%clk 0:00:09]}  Kd7 {[%clk 0:00:39]} 39. a5 {[%clk 0:00:10]}  Kc6 {[%clk 0:00:39]} 40. axb6 {[%clk 0:00:10]}  axb6 {[%clk 0:00:40]} 41. Rc1 {[%clk 0:00:11]}  b5 {[%clk 0:00:41]} 42. Kf3 {[%clk 0:00:11]}  c4 {[%clk 0:00:41]} 43. h3 {[%clk 0:00:12]}  Kc5 {[%clk 0:00:41]} 44. g4 {[%clk 0:00:13]}  hxg4+ {[%clk 0:00:42]} 45. hxg4 {[%clk 0:00:14]}  b4 {[%clk 0:00:42]} 46. gxf5 {[%clk 0:00:14]}  gxf5 {[%clk 0:00:43]} 47. Rg1 {[%clk 0:00:14]}  c3 {[%clk 0:00:43]} 48. Rg5 {[%clk 0:00:14]}  b3 {[%clk 0:00:43]} 49. Rxf5+ {[%clk 0:00:15]}  Kc4 {[%clk 0:00:44]} 50. Rf8 {[%clk 0:00:15]}  b2 {[%clk 0:00:44]} 51. Rc8+ {[%clk 0:00:15]}  Kd3 {[%clk 0:00:45]} 52. Rd8+ {[%clk 0:00:14]}  Kc2 {[%clk 0:00:45]} 53. f5 {[%clk 0:00:12]}  Rf6 {[%clk 0:00:45]} 54. Ke4 {[%clk 0:00:12]}  b1=Q {[%clk 0:00:45]} 55. Ke5 {[%clk 0:00:13]}  Qb6 {[%clk 0:00:40]} 0-1


[Site "https://www.chess.com"]

[Event "Titled Tuesday Blitz January 25 2022"]
[White "Hoghmrtsyan, Artur"]
[Black "Obolenskikh, Dmitry"]
[WhiteFideId "13306685"]
[BlackFideId "4156013"]
[WhiteElo "2624"]
[BlackElo "2512"]
[Result "0-1"]
[Round "10"]
[TimeControl "180+1"]
[Date "2022.01.26"]
[WhiteClock "0:00:01"]
[BlackClock "0:00:18"]

1. d4 {[%clk 0:03:00]}  d5 {[%clk 0:02:59]} 2. c4 {[%clk 0:03:01]}  e6 {[%clk 0:02:59]} 3. Nf3 {[%clk 0:03:01]}  c6 {[%clk 0:02:59]} 4. e3 {[%clk 0:02:58]}  Nf6 {[%clk 0:02:59]} 5. Nc3 {[%clk 0:02:59]}  Nbd7 {[%clk 0:02:59]} 6. Qc2 {[%clk 0:02:58]}  b6 {[%clk 0:02:59]} 7. b3 {[%clk 0:02:55]}  Bb7 {[%clk 0:02:58]} 8. Bd3 {[%clk 0:02:56]}  Be7 {[%clk 0:02:56]} 9. O-O {[%clk 0:02:56]}  O-O {[%clk 0:02:55]} 10. Bb2 {[%clk 0:02:57]}  h6 {[%clk 0:02:55]} 11. Rfd1 {[%clk 0:02:49]}  Qc7 {[%clk 0:02:54]} 12. e4 {[%clk 0:02:49]}  dxe4 {[%clk 0:02:54]} 13. Nxe4 {[%clk 0:02:50]}  Nxe4 {[%clk 0:02:53]} 14. Bxe4 {[%clk 0:02:50]}  Nf6 {[%clk 0:02:52]} 15. Bd3 {[%clk 0:02:48]}  c5 {[%clk 0:02:51]} 16. Qe2 {[%clk 0:02:46]}  Rad8 {[%clk 0:02:34]} 17. Rac1 {[%clk 0:02:38]}  cxd4 {[%clk 0:02:31]} 18. Nxd4 {[%clk 0:02:39]}  a6 {[%clk 0:02:21]} 19. Bb1 {[%clk 0:02:36]}  Rd6 {[%clk 0:02:15]} 20. b4 {[%clk 0:02:15]}  Rfd8 {[%clk 0:01:56]} 21. c5 {[%clk 0:02:14]}  bxc5 {[%clk 0:01:56]} 22. bxc5 {[%clk 0:02:15]}  Rd5 {[%clk 0:01:56]} 23. c6 {[%clk 0:02:14]}  Ba8 {[%clk 0:01:53]} 24. h3 {[%clk 0:02:06]}  Bc5 {[%clk 0:01:32]} 25. Nf3 {[%clk 0:00:51]}  Rxd1+ {[%clk 0:01:16]} 26. Rxd1 {[%clk 0:00:52]}  Rxd1+ {[%clk 0:01:16]} 27. Qxd1 {[%clk 0:00:51]}  Bxc6 {[%clk 0:01:08]} 28. Ne5 {[%clk 0:00:33]}  Bxg2 {[%clk 0:00:41]} 29. Kxg2 {[%clk 0:00:15]}  Qb7+ {[%clk 0:00:41]} 30. Kg3 {[%clk 0:00:06]}  Qxb2 {[%clk 0:00:37]} 31. Nd3 {[%clk 0:00:01]}  Qd4 {[%clk 0:00:31]} 32. Kg2 {[%clk 0:00:02]}  g6 {[%clk 0:00:26]} 33. Qc2 {[%clk 0:00:02]}  Bb6 {[%clk 0:00:20]} 34. Qb3 {[%clk 0:00:01]}  Kg7 {[%clk 0:00:19]} 35. Qc2 {[%clk 0:00:01]}  Nd5 {[%clk 0:00:18]} 0-1


[Site "https://www.chess.com"]

[Event "Titled Tuesday Blitz January 25 2022"]
[White "Iskusnyh, Sergei"]
[Black "Pakleza, Zbigniew"]
[WhiteFideId "4120027"]
[BlackFideId "1119290"]
[WhiteElo "2492"]
[BlackElo "2467"]
[Result "1/2-1/2"]
[Round "10"]
[TimeControl "180+1"]
[Date "2022.01.26"]
[WhiteClock "0:00:28"]
[BlackClock "0:00:07"]

1. d4 {[%clk 0:03:00]}  d5 {[%clk 0:03:00]} 2. c4 {[%clk 0:03:00]}  c6 {[%clk 0:03:01]} 3. Nf3 {[%clk 0:02:59]}  Nf6 {[%clk 0:03:01]} 4. e3 {[%clk 0:03:00]}  Bf5 {[%clk 0:03:01]} 5. Nc3 {[%clk 0:02:59]}  e6 {[%clk 0:03:02]} 6. Nh4 {[%clk 0:03:00]}  Be4 {[%clk 0:03:02]} 7. f3 {[%clk 0:02:59]}  Bg6 {[%clk 0:03:02]} 8. Bd2 {[%clk 0:02:59]}  Nbd7 {[%clk 0:03:02]} 9. Nxg6 {[%clk 0:02:58]}  hxg6 {[%clk 0:03:02]} 10. Qc2 {[%clk 0:02:59]}  Bd6 {[%clk 0:02:46]} 11. O-O-O {[%clk 0:02:57]}  Qc7 {[%clk 0:02:36]} 12. Kb1 {[%clk 0:02:50]}  O-O-O {[%clk 0:02:26]} 13. cxd5 {[%clk 0:02:38]}  exd5 {[%clk 0:02:11]} 14. Rc1 {[%clk 0:02:32]}  Kb8 {[%clk 0:02:06]} 15. e4 {[%clk 0:02:26]}  dxe4 {[%clk 0:01:52]} 16. fxe4 {[%clk 0:02:25]}  Bf4 {[%clk 0:01:52]} 17. e5 {[%clk 0:02:23]}  Bxd2 {[%clk 0:01:47]} 18. Qxd2 {[%clk 0:02:22]}  Nxe5 {[%clk 0:01:34]} 19. Nb5 {[%clk 0:02:07]}  Qb6 {[%clk 0:01:15]} 20. Qf4 {[%clk 0:02:00]}  cxb5 {[%clk 0:01:11]} 21. Qxe5+ {[%clk 0:01:59]}  Qd6 {[%clk 0:01:05]} 22. Bxb5 {[%clk 0:01:56]}  Qxe5 {[%clk 0:00:57]} 23. dxe5 {[%clk 0:01:55]}  Ng4 {[%clk 0:00:58]} 24. e6 {[%clk 0:01:51]}  fxe6 {[%clk 0:00:56]} 25. h3 {[%clk 0:01:51]}  Ne3 {[%clk 0:00:51]} 26. Rhe1 {[%clk 0:01:50]}  Nxg2 {[%clk 0:00:47]} 27. Rxe6 {[%clk 0:01:50]}  a6 {[%clk 0:00:32]} 28. Bf1 {[%clk 0:01:34]}  Nf4 {[%clk 0:00:32]} 29. Re7 {[%clk 0:01:34]}  Rc8 {[%clk 0:00:23]} 30. Rxg7 {[%clk 0:01:21]}  Rxc1+ {[%clk 0:00:20]} 31. Kxc1 {[%clk 0:01:22]}  Re8 {[%clk 0:00:13]} 32. Kd2 {[%clk 0:01:18]}  Re6 {[%clk 0:00:13]} 33. h4 {[%clk 0:01:16]}  b5 {[%clk 0:00:11]} 34. Rf7 {[%clk 0:01:12]}  Re4 {[%clk 0:00:10]} 35. a3 {[%clk 0:00:49]}  Nd5 {[%clk 0:00:07]} 36. Bg2 {[%clk 0:00:44]}  Rxh4 {[%clk 0:00:07]} 37. Bxd5 {[%clk 0:00:39]}  Rd4+ {[%clk 0:00:07]} 38. Kc3 {[%clk 0:00:39]}  Rxd5 {[%clk 0:00:08]} 39. Rf6 {[%clk 0:00:40]}  g5 {[%clk 0:00:08]} 40. Rxa6 {[%clk 0:00:37]}  Kb7 {[%clk 0:00:08]} 41. Rg6 {[%clk 0:00:37]}  Rf5 {[%clk 0:00:08]} 42. Kb4 {[%clk 0:00:36]}  Ka7 {[%clk 0:00:08]} 43. Ka5 {[%clk 0:00:36]}  Kb7 {[%clk 0:00:08]} 44. Rg7+ {[%clk 0:00:36]}  Kc6 {[%clk 0:00:09]} 45. Rg6+ {[%clk 0:00:34]}  Kc5 {[%clk 0:00:08]} 46. b4+ {[%clk 0:00:34]}  Kd4 {[%clk 0:00:08]} 47. a4 {[%clk 0:00:30]}  bxa4+ {[%clk 0:00:09]} 48. Kxa4 {[%clk 0:00:31]}  Ke4 {[%clk 0:00:08]} 49. b5 {[%clk 0:00:31]}  Kf4 {[%clk 0:00:08]} 50. b6 {[%clk 0:00:31]}  Rf8 {[%clk 0:00:09]} 51. b7 {[%clk 0:00:30]}  Rb8 {[%clk 0:00:09]} 52. Rf6+ {[%clk 0:00:29]}  Ke3 {[%clk 0:00:08]} 53. Rf7 {[%clk 0:00:29]}  g4 {[%clk 0:00:07]} 54. Kb5 {[%clk 0:00:29]}  g3 {[%clk 0:00:07]} 55. Kc6 {[%clk 0:00:29]}  g2 {[%clk 0:00:07]} 56. Rg7 {[%clk 0:00:30]}  Kf2 {[%clk 0:00:07]} 57. Kc7 {[%clk 0:00:27]}  Rxb7+ {[%clk 0:00:06]} 58. Kxb7 {[%clk 0:00:28]}  g1=Q {[%clk 0:00:06]} 59. Rxg1 {[%clk 0:00:28]}  Kxg1 {[%clk 0:00:07]} 1/2-1/2


[Site "https://www.chess.com"]

[Event "Titled Tuesday Blitz January 25 2022"]
[White "Jaracz, Pawel"]
[Black "Howell, David W L"]
[WhiteFideId "1102222"]
[BlackFideId "410608"]
[WhiteElo "2429"]
[BlackElo "2559"]
[Result "0-1"]
[Round "10"]
[TimeControl "180+1"]
[Date "2022.01.26"]
[WhiteClock "0:00:08"]
[BlackClock "0:00:19"]

1. e4 {[%clk 0:03:00]}  b6 {[%clk 0:02:50]} 2. d4 {[%clk 0:03:00]}  Bb7 {[%clk 0:02:51]} 3. Nd2 {[%clk 0:02:59]}  e6 {[%clk 0:02:50]} 4. Bd3 {[%clk 0:02:59]}  Nf6 {[%clk 0:02:42]} 5. Ne2 {[%clk 0:02:59]}  c5 {[%clk 0:02:30]} 6. c3 {[%clk 0:02:59]}  Be7 {[%clk 0:02:30]} 7. O-O {[%clk 0:02:58]}  O-O {[%clk 0:02:29]} 8. e5 {[%clk 0:02:54]}  Nd5 {[%clk 0:02:28]} 9. Ne4 {[%clk 0:02:54]}  cxd4 {[%clk 0:02:27]} 10. cxd4 {[%clk 0:02:54]}  d6 {[%clk 0:02:23]} 11. f4 {[%clk 0:02:21]}  Nc6 {[%clk 0:02:22]} 12. a3 {[%clk 0:02:20]}  Rc8 {[%clk 0:02:15]} 13. Bd2 {[%clk 0:02:02]}  Qd7 {[%clk 0:02:03]} 14. Qe1 {[%clk 0:01:58]}  dxe5 {[%clk 0:01:50]} 15. fxe5 {[%clk 0:01:58]}  f5 {[%clk 0:01:49]} 16. exf6 {[%clk 0:01:54]}  Nxf6 {[%clk 0:01:50]} 17. Bc3 {[%clk 0:01:38]}  Nxe4 {[%clk 0:01:49]} 18. Rxf8+ {[%clk 0:01:35]}  Rxf8 {[%clk 0:01:40]} 19. Bxe4 {[%clk 0:01:35]}  Bd6 {[%clk 0:01:27]} 20. Qh4 {[%clk 0:01:32]}  h6 {[%clk 0:01:22]} 21. Qg4 {[%clk 0:01:13]}  Qf7 {[%clk 0:01:11]} 22. d5 {[%clk 0:00:59]}  Ne5 {[%clk 0:01:11]} 23. Qg3 {[%clk 0:00:28]}  exd5 {[%clk 0:00:57]} 24. Bxe5 {[%clk 0:00:21]}  Bxe5 {[%clk 0:00:56]} 25. Qxe5 {[%clk 0:00:20]}  Qf2+ {[%clk 0:00:50]} 26. Kh1 {[%clk 0:00:19]}  dxe4 {[%clk 0:00:51]} 27. Ng3 {[%clk 0:00:16]}  e3 {[%clk 0:00:48]} 28. Rg1 {[%clk 0:00:16]}  Kh7 {[%clk 0:00:37]} 29. h3 {[%clk 0:00:14]}  Rf6 {[%clk 0:00:24]} 30. Kh2 {[%clk 0:00:14]}  Rg6 {[%clk 0:00:21]} 31. b4 {[%clk 0:00:10]}  e2 {[%clk 0:00:20]} 32. Qf5 {[%clk 0:00:08]}  Qxg3+ {[%clk 0:00:19]} 0-1


[Site "https://www.chess.com"]

[Event "Titled Tuesday Blitz January 25 2022"]
[White "Jones, Gawain C B"]
[Black "Yaksin, Oleg"]
[WhiteFideId "409561"]
[BlackFideId "24105880"]
[WhiteElo "2657"]
[BlackElo "2256"]
[Result "1-0"]
[Round "10"]
[TimeControl "180+1"]
[Date "2022.01.26"]
[WhiteClock "0:01:00"]
[BlackClock "0:00:02"]

1. d4 {[%clk 0:03:00]}  Nf6 {[%clk 0:02:57]} 2. g3 {[%clk 0:02:58]}  e6 {[%clk 0:02:44]} 3. Bg2 {[%clk 0:02:58]}  c5 {[%clk 0:02:41]} 4. Nf3 {[%clk 0:02:56]}  Nc6 {[%clk 0:02:37]} 5. O-O {[%clk 0:02:55]}  Be7 {[%clk 0:02:37]} 6. c4 {[%clk 0:02:54]}  cxd4 {[%clk 0:02:36]} 7. Nxd4 {[%clk 0:02:54]}  O-O {[%clk 0:02:37]} 8. Nc3 {[%clk 0:02:55]}  a6 {[%clk 0:02:34]} 9. b3 {[%clk 0:02:46]}  d5 {[%clk 0:02:27]} 10. cxd5 {[%clk 0:02:45]}  exd5 {[%clk 0:02:28]} 11. Bb2 {[%clk 0:02:44]}  Bg4 {[%clk 0:02:28]} 12. h3 {[%clk 0:02:43]}  Bh5 {[%clk 0:01:52]} 13. Nf5 {[%clk 0:02:42]}  d4 {[%clk 0:01:49]} 14. Ne4 {[%clk 0:02:22]}  Re8 {[%clk 0:01:24]} 15. Nxe7+ {[%clk 0:02:20]}  Qxe7 {[%clk 0:01:22]} 16. Nxf6+ {[%clk 0:02:20]}  Qxf6 {[%clk 0:01:20]} 17. g4 {[%clk 0:02:20]}  Bg6 {[%clk 0:01:19]} 18. e3 {[%clk 0:02:20]}  Rad8 {[%clk 0:01:14]} 19. Rc1 {[%clk 0:02:13]}  Be4 {[%clk 0:00:48]} 20. f3 {[%clk 0:02:11]}  Bg6 {[%clk 0:00:44]} 21. e4 {[%clk 0:02:11]}  Qd6 {[%clk 0:00:42]} 22. Qd2 {[%clk 0:01:49]}  f6 {[%clk 0:00:37]} 23. Rfe1 {[%clk 0:01:45]}  Qg3 {[%clk 0:00:29]} 24. Qf2 {[%clk 0:01:35]}  Qf4 {[%clk 0:00:29]} 25. Red1 {[%clk 0:01:32]}  h5 {[%clk 0:00:25]} 26. Qd2 {[%clk 0:01:30]}  Qg3 {[%clk 0:00:24]} 27. Rc5 {[%clk 0:01:28]}  hxg4 {[%clk 0:00:23]} 28. hxg4 {[%clk 0:01:28]}  Kf7 {[%clk 0:00:18]} 29. Qf2 {[%clk 0:01:25]}  Qf4 {[%clk 0:00:17]} 30. Bc1 {[%clk 0:01:24]}  Qd6 {[%clk 0:00:16]} 31. Rd5 {[%clk 0:01:25]}  Qb4 {[%clk 0:00:15]} 32. Rxd8 {[%clk 0:01:23]}  Rxd8 {[%clk 0:00:15]} 33. f4 {[%clk 0:01:23]}  Kg8 {[%clk 0:00:14]} 34. e5 {[%clk 0:01:21]}  fxe5 {[%clk 0:00:13]} 35. f5 {[%clk 0:01:21]}  Bf7 {[%clk 0:00:13]} 36. g5 {[%clk 0:01:19]}  Qe7 {[%clk 0:00:06]} 37. g6 {[%clk 0:01:12]}  Bd5 {[%clk 0:00:03]} 38. Bxd5+ {[%clk 0:01:11]}  Rxd5 {[%clk 0:00:04]} 39. Qh2 {[%clk 0:01:11]}  Qf6 {[%clk 0:00:03]} 40. Qh5 {[%clk 0:01:00]}  e4 {[%clk 0:00:02]} 41. Bg5 {[%clk 0:00:59]}  Qe5 {[%clk 0:00:01]} 42. Qh7+ {[%clk 0:00:59]}  Kf8 {[%clk 0:00:02]} 43. Qh8# {[%clk 0:01:00]} 1-0


[Site "https://www.chess.com"]